[Event "Titled Tuesday Blitz March 28 Late 2023"]
[White "Spata, German"]
[Black "Kielinkei"]
[WhiteFideId "113026"]
[WhiteElo "2238"]
[BlackElo "2429"]
[Result "1-0"]
[Round "11"]
[TimeControl "180+2"]
[Date "2023.03.28"]
[WhiteClock "0:00:11"]
[BlackClock "0:00:05"]

1. e4 {[%clk 0:02:55]}  c5 {[%clk 0:02:59]} 2. b3 {[%clk 0:02:54]}  Nf6 {[%clk 0:02:57]} 3. Nc3 {[%clk 0:02:44]}  Nc6 {[%clk 0:02:54]} 4. Bb2 {[%clk 0:02:43]}  d5 {[%clk 0:02:53]} 5. exd5 {[%clk 0:02:42]}  Nxd5 {[%clk 0:02:54]} 6. Bb5 {[%clk 0:02:37]}  Nxc3 {[%clk 0:02:30]} 7. Bxc6+ {[%clk 0:02:34]}  bxc6 {[%clk 0:02:31]} 8. Bxc3 {[%clk 0:02:33]}  e6 {[%clk 0:02:25]} 9. d3 {[%clk 0:02:32]}  Qg5 {[%clk 0:02:23]} 10. Qf3 {[%clk 0:02:28]}  Qd5 {[%clk 0:02:19]} 11. Qg3 {[%clk 0:02:14]}  Bd7 {[%clk 0:02:09]} 12. Nf3 {[%clk 0:02:10]}  f6 {[%clk 0:01:47]} 13. O-O {[%clk 0:01:59]}  Kf7 {[%clk 0:01:45]} 14. Rfe1 {[%clk 0:01:52]}  Bd6 {[%clk 0:01:45]} 15. Qh4 {[%clk 0:01:45]}  e5 {[%clk 0:01:31]} 16. Nd2 {[%clk 0:01:37]}  Rae8 {[%clk 0:01:15]} 17. Nc4 {[%clk 0:01:37]}  Be7 {[%clk 0:01:09]} 18. f4 {[%clk 0:01:29]}  exf4 {[%clk 0:00:47]} 19. Qxf4 {[%clk 0:01:30]}  Rhf8 {[%clk 0:00:43]} 20. Re2 {[%clk 0:01:16]}  Kg8 {[%clk 0:00:40]} 21. Rae1 {[%clk 0:01:15]}  Bd8 {[%clk 0:00:36]} 22. Rxe8 {[%clk 0:01:05]}  Rxe8 {[%clk 0:00:37]} 23. Rxe8+ {[%clk 0:01:05]}  Bxe8 {[%clk 0:00:38]} 24. Qe3 {[%clk 0:00:57]}  Bd7 {[%clk 0:00:32]} 25. Nd2 {[%clk 0:00:46]}  Qh5 {[%clk 0:00:27]} 26. Nf3 {[%clk 0:00:40]}  Qd5 {[%clk 0:00:26]} 27. Be1 {[%clk 0:00:36]}  Kf7 {[%clk 0:00:23]} 28. Bf2 {[%clk 0:00:36]}  Bb6 {[%clk 0:00:22]} 29. Qe2 {[%clk 0:00:31]}  Bg4 {[%clk 0:00:15]} 30. h3 {[%clk 0:00:27]}  Bxf3 {[%clk 0:00:15]} 31. Qxf3 {[%clk 0:00:27]}  Qxf3 {[%clk 0:00:13]} 32. gxf3 {[%clk 0:00:28]}  Ke6 {[%clk 0:00:13]} 33. Kf1 {[%clk 0:00:27]}  Kd5 {[%clk 0:00:11]} 34. Ke2 {[%clk 0:00:25]}  Ba5 {[%clk 0:00:11]} 35. c4+ {[%clk 0:00:23]}  Kd6 {[%clk 0:00:12]} 36. Bg3+ {[%clk 0:00:23]}  Ke6 {[%clk 0:00:12]} 37. Bb8 {[%clk 0:00:21]}  a6 {[%clk 0:00:11]} 38. Ke3 {[%clk 0:00:21]}  Bb4 {[%clk 0:00:12]} 39. f4 {[%clk 0:00:18]}  f5 {[%clk 0:00:08]} 40. Be5 {[%clk 0:00:16]}  g6 {[%clk 0:00:08]} 41. Bb2 {[%clk 0:00:16]}  Be1 {[%clk 0:00:06]} 42. Kf3 {[%clk 0:00:15]}  Bb4 {[%clk 0:00:06]} 43. Bc1 {[%clk 0:00:14]}  Be1 {[%clk 0:00:07]} 44. a3 {[%clk 0:00:14]}  Bc3 {[%clk 0:00:06]} 45. Be3 {[%clk 0:00:13]}  Bd4 {[%clk 0:00:07]} 46. Bxd4 {[%clk 0:00:13]}  cxd4 {[%clk 0:00:08]} 47. b4 {[%clk 0:00:14]}  Kd6 {[%clk 0:00:06]} 48. Kg3 {[%clk 0:00:13]}  h6 {[%clk 0:00:07]} 49. a4 {[%clk 0:00:12]}  Kc7 {[%clk 0:00:06]} 50. h4 {[%clk 0:00:10]}  h5 {[%clk 0:00:06]} 51. Kf3 {[%clk 0:00:10]}  Kb6 {[%clk 0:00:06]} 52. Ke2 {[%clk 0:00:11]}  Kc7 {[%clk 0:00:06]} 53. Kd2 {[%clk 0:00:11]}  Kb6 {[%clk 0:00:07]} 54. Kc2 {[%clk 0:00:11]}  Kc7 {[%clk 0:00:07]} 55. Kb3 {[%clk 0:00:11]}  Kb6 {[%clk 0:00:07]} 56. c5+ {[%clk 0:00:11]}  Kc7 {[%clk 0:00:03]} 57. Kc4 {[%clk 0:00:11]}  Kd7 {[%clk 0:00:02]} 58. Kxd4 {[%clk 0:00:11]}  Ke6 {[%clk 0:00:02]} 59. Kc3 {[%clk 0:00:09]}  g5 {[%clk 0:00:02]} 60. fxg5 {[%clk 0:00:09]}  f4 {[%clk 0:00:03]} 61. Kd2 {[%clk 0:00:10]}  Kf5 {[%clk 0:00:03]} 62. Ke2 {[%clk 0:00:10]}  Kg4 {[%clk 0:00:04]} 63. Kf2 {[%clk 0:00:09]}  Kxh4 {[%clk 0:00:03]} 64. g6 {[%clk 0:00:10]}  Kh3 {[%clk 0:00:04]} 65. g7 {[%clk 0:00:11]}  Kh2 {[%clk 0:00:04]} 66. g8=Q {[%clk 0:00:11]}  h4 {[%clk 0:00:05]} 67. Qg2# {[%clk 0:00:11]} 1-0


[Site "https://www.chess.com"]

[Event "Titled Tuesday Blitz March 28 Late 2023"]
[White "Senthilkumar, Pranav"]
[Black "Lenaerts, Lennert"]
[WhiteFideId "2083477"]
[BlackFideId "211435"]
[WhiteElo "1860"]
[BlackElo "2334"]
[Result "1-0"]
[Round "11"]
[TimeControl "180+2"]
[Date "2023.03.28"]
[WhiteClock "0:01:51"]
[BlackClock "0:02:25"]

1. Nf3 {[%clk 0:03:00]}  d5 {[%clk 0:02:58]} 2. b3 {[%clk 0:03:00]}  h6 {[%clk 0:02:57]} 3. Bb2 {[%clk 0:03:00]}  Bf5 {[%clk 0:02:58]} 4. e3 {[%clk 0:02:59]}  e6 {[%clk 0:02:58]} 5. c4 {[%clk 0:02:59]}  Nf6 {[%clk 0:02:58]} 6. Nc3 {[%clk 0:02:59]}  Be7 {[%clk 0:02:58]} 7. Be2 {[%clk 0:02:58]}  O-O {[%clk 0:02:59]} 8. O-O {[%clk 0:02:58]}  c6 {[%clk 0:02:59]} 9. Rc1 {[%clk 0:02:58]}  Nbd7 {[%clk 0:02:59]} 10. d4 {[%clk 0:02:58]}  Rc8 {[%clk 0:02:58]} 11. Bd3 {[%clk 0:02:57]}  Bxd3 {[%clk 0:02:56]} 12. Qxd3 {[%clk 0:02:58]}  Re8 {[%clk 0:02:57]} 13. e4 {[%clk 0:02:58]}  dxe4 {[%clk 0:02:57]} 14. Nxe4 {[%clk 0:02:59]}  Nxe4 {[%clk 0:02:57]} 15. Qxe4 {[%clk 0:03:00]}  Nf6 {[%clk 0:02:58]} 16. Qe2 {[%clk 0:03:00]}  Qa5 {[%clk 0:02:58]} 17. Bc3 {[%clk 0:02:58]}  Bb4 {[%clk 0:02:58]} 18. Bxb4 {[%clk 0:02:56]}  Qxb4 {[%clk 0:02:59]} 19. Ne5 {[%clk 0:02:57]}  Red8 {[%clk 0:02:57]} 20. Rfd1 {[%clk 0:02:56]}  Rd6 {[%clk 0:02:55]} 21. Qb2 {[%clk 0:02:43]}  Rcd8 {[%clk 0:02:54]} 22. a3 {[%clk 0:02:43]}  Qa5 {[%clk 0:02:54]} 23. c5 {[%clk 0:02:38]}  Rd5 {[%clk 0:02:48]} 24. Nc4 {[%clk 0:02:38]}  Qxc5 {[%clk 0:02:31]} 25. Ne3 {[%clk 0:02:31]}  Rxd4 {[%clk 0:02:31]} 26. Rxc5 {[%clk 0:02:19]}  Rxd1+ {[%clk 0:02:30]} 27. Nf1 {[%clk 0:02:19]}  Ne4 {[%clk 0:02:26]} 28. Rc1 {[%clk 0:01:58]}  R1d3 {[%clk 0:02:25]} 29. h3 {[%clk 0:01:51]} 1-0


[Site "https://www.chess.com"]

[Event "Titled Tuesday Blitz March 28 Late 2023"]
[White "Ozates, Tuna"]
[Black "Itkis, Boris"]
[WhiteFideId "6354521"]
[BlackFideId "1209167"]
[WhiteElo "2151"]
[BlackElo "2216"]
[Result "1-0"]
[Round "11"]
[TimeControl "180+2"]
[Date "2023.03.28"]
[WhiteClock "0:01:33"]
[BlackClock "0:00:50"]

1. d4 {[%clk 0:03:00]}  d5 {[%clk 0:02:59]} 2. Bg5 {[%clk 0:02:57]}  Nf6 {[%clk 0:02:57]} 3. Bxf6 {[%clk 0:02:57]}  gxf6 {[%clk 0:02:56]} 4. c4 {[%clk 0:02:57]}  e6 {[%clk 0:02:49]} 5. Nc3 {[%clk 0:02:57]}  dxc4 {[%clk 0:02:45]} 6. e4 {[%clk 0:02:56]}  c5 {[%clk 0:02:45]} 7. d5 {[%clk 0:02:55]}  a6 {[%clk 0:02:41]} 8. a4 {[%clk 0:02:55]}  Qb6 {[%clk 0:02:29]} 9. Bxc4 {[%clk 0:02:50]}  Qxb2 {[%clk 0:02:23]} 10. Nge2 {[%clk 0:02:49]}  Qb6 {[%clk 0:02:15]} 11. a5 {[%clk 0:02:46]}  Qc7 {[%clk 0:02:13]} 12. O-O {[%clk 0:02:44]}  Bd6 {[%clk 0:02:12]} 13. g3 {[%clk 0:02:42]}  h5 {[%clk 0:02:10]} 14. dxe6 {[%clk 0:02:38]}  fxe6 {[%clk 0:02:08]} 15. Qd3 {[%clk 0:02:33]}  Nc6 {[%clk 0:01:58]} 16. f4 {[%clk 0:02:31]}  Be7 {[%clk 0:01:36]} 17. e5 {[%clk 0:02:26]}  f5 {[%clk 0:01:35]} 18. Rfd1 {[%clk 0:02:19]}  Bd7 {[%clk 0:01:34]} 19. Qf3 {[%clk 0:02:08]}  O-O-O {[%clk 0:01:33]} 20. Rdb1 {[%clk 0:02:03]}  Rdg8 {[%clk 0:01:26]} 21. Rb6 {[%clk 0:02:00]}  h4 {[%clk 0:01:25]} 22. Rab1 {[%clk 0:01:57]}  Nxa5 {[%clk 0:01:13]} 23. Bxa6 {[%clk 0:01:57]}  Bc6 {[%clk 0:01:12]} 24. Rxc6 {[%clk 0:01:50]}  Qxc6 {[%clk 0:01:12]} 25. Bxb7+ {[%clk 0:01:50]}  Qxb7 {[%clk 0:01:08]} 26. Rxb7 {[%clk 0:01:50]}  Nxb7 {[%clk 0:01:09]} 27. Qc6+ {[%clk 0:01:49]}  Kb8 {[%clk 0:01:08]} 28. Qxe6 {[%clk 0:01:43]}  hxg3 {[%clk 0:01:07]} 29. hxg3 {[%clk 0:01:42]}  Bd8 {[%clk 0:01:04]} 30. Qxf5 {[%clk 0:01:39]}  c4 {[%clk 0:01:03]} 31. e6 {[%clk 0:01:37]}  Bb6+ {[%clk 0:01:01]} 32. Kg2 {[%clk 0:01:38]}  Rg7 {[%clk 0:00:53]} 33. Qe5+ {[%clk 0:01:35]}  Rc7 {[%clk 0:00:50]} 34. Qxh8+ {[%clk 0:01:33]} 1-0


[Site "https://www.chess.com"]

[Event "Titled Tuesday Blitz March 28 Late 2023"]
[White "Adan Bermudez, Sergio"]
[Black "Bogaudinov, Rushan"]
[WhiteFideId "2292726"]
[BlackFideId "4129288"]
[WhiteElo "2292"]
[BlackElo "1949"]
[Result "0-1"]
[Round "11"]
[TimeControl "180+2"]
[Date "2023.03.28"]
[WhiteClock "0:00:04"]
[BlackClock "0:00:30"]

1. c4 {[%clk 0:03:00]}  e5 {[%clk 0:02:57]} 2. Nc3 {[%clk 0:03:01]}  Nc6 {[%clk 0:02:56]} 3. Nf3 {[%clk 0:03:02]}  Bb4 {[%clk 0:02:56]} 4. g3 {[%clk 0:03:02]}  Bxc3 {[%clk 0:02:56]} 5. bxc3 {[%clk 0:03:02]}  d6 {[%clk 0:02:56]} 6. Bg2 {[%clk 0:03:02]}  Nf6 {[%clk 0:02:55]} 7. O-O {[%clk 0:03:02]}  O-O {[%clk 0:02:55]} 8. Rb1 {[%clk 0:03:03]}  Rb8 {[%clk 0:02:44]} 9. d3 {[%clk 0:02:59]}  Re8 {[%clk 0:02:30]} 10. e4 {[%clk 0:02:54]}  b6 {[%clk 0:02:19]} 11. Nh4 {[%clk 0:02:50]}  Na5 {[%clk 0:02:08]} 12. f4 {[%clk 0:02:46]}  Nb7 {[%clk 0:02:05]} 13. fxe5 {[%clk 0:02:40]}  dxe5 {[%clk 0:02:03]} 14. Bg5 {[%clk 0:02:40]}  Nc5 {[%clk 0:01:58]} 15. Bxf6 {[%clk 0:02:31]}  gxf6 {[%clk 0:01:59]} 16. Qh5 {[%clk 0:02:11]}  Qxd3 {[%clk 0:01:45]} 17. Rxf6 {[%clk 0:02:09]}  Qxb1+ {[%clk 0:01:44]} 18. Rf1 {[%clk 0:01:56]}  Qxf1+ {[%clk 0:01:38]} 19. Kxf1 {[%clk 0:01:54]}  Be6 {[%clk 0:01:38]} 20. Qg5+ {[%clk 0:01:51]}  Kf8 {[%clk 0:01:37]} 21. Kg1 {[%clk 0:01:41]}  Red8 {[%clk 0:01:29]} 22. h3 {[%clk 0:01:35]}  Rd1+ {[%clk 0:01:26]} 23. Kh2 {[%clk 0:01:35]}  Rbd8 {[%clk 0:01:27]} 24. Qxe5 {[%clk 0:01:27]}  R8d2 {[%clk 0:01:21]} 25. Nf5 {[%clk 0:01:04]}  Bxf5 {[%clk 0:00:47]} 26. exf5 {[%clk 0:01:05]}  Nd3 {[%clk 0:00:47]} 27. Qxc7 {[%clk 0:00:10]}  Ne1 {[%clk 0:00:43]} 28. Qc8+ {[%clk 0:00:05]}  Kg7 {[%clk 0:00:37]} 29. f6+ {[%clk 0:00:04]}  Kxf6 {[%clk 0:00:32]} 30. Qc6+ {[%clk 0:00:04]}  Kg7 {[%clk 0:00:30]} 0-1


[Site "https://www.chess.com"]

[Event "Titled Tuesday Blitz March 28 Late 2023"]
[White "Hambleton, Aman"]
[Black "WindWhistler11"]
[WhiteFideId "2606577"]
[WhiteElo "2511"]
[BlackElo "2467"]
[Result "1-0"]
[Round "11"]
[TimeControl "180+2"]
[Date "2023.03.28"]
[WhiteClock "0:00:59"]
[BlackClock "0:00:12"]

1. d4 {[%clk 0:03:00]}  Nf6 {[%clk 0:02:48]} 2. Bf4 {[%clk 0:03:01]}  d6 {[%clk 0:02:48]} 3. e3 {[%clk 0:03:01]}  Nbd7 {[%clk 0:02:48]} 4. h3 {[%clk 0:03:01]}  e5 {[%clk 0:02:48]} 5. Bh2 {[%clk 0:03:02]}  g6 {[%clk 0:02:46]} 6. Nf3 {[%clk 0:03:02]}  e4 {[%clk 0:02:42]} 7. Nfd2 {[%clk 0:03:03]}  Bg7 {[%clk 0:02:25]} 8. c4 {[%clk 0:03:03]}  Qe7 {[%clk 0:02:24]} 9. Nc3 {[%clk 0:03:03]}  O-O {[%clk 0:02:25]} 10. Be2 {[%clk 0:03:04]}  Re8 {[%clk 0:02:25]} 11. O-O {[%clk 0:03:04]}  h5 {[%clk 0:02:21]} 12. a4 {[%clk 0:03:04]}  a5 {[%clk 0:02:14]} 13. Nb5 {[%clk 0:03:04]}  Nf8 {[%clk 0:02:08]} 14. c5 {[%clk 0:03:04]}  dxc5 {[%clk 0:02:03]} 15. Nxc7 {[%clk 0:03:02]}  cxd4 {[%clk 0:01:54]} 16. Bb5 {[%clk 0:02:48]}  Bf5 {[%clk 0:01:46]} 17. Nxe8 {[%clk 0:02:44]}  Nxe8 {[%clk 0:01:42]} 18. exd4 {[%clk 0:02:45]}  Bxd4 {[%clk 0:01:35]} 19. Nc4 {[%clk 0:02:42]}  Rd8 {[%clk 0:01:31]} 20. Qe2 {[%clk 0:02:30]}  Qg5 {[%clk 0:01:27]} 21. Kh1 {[%clk 0:02:29]}  Nf6 {[%clk 0:01:16]} 22. Rad1 {[%clk 0:02:29]}  Ne6 {[%clk 0:01:13]} 23. Nd6 {[%clk 0:02:24]}  Nd5 {[%clk 0:00:56]} 24. Nxe4 {[%clk 0:02:18]}  Qh4 {[%clk 0:00:49]} 25. Nd6 {[%clk 0:01:57]}  Bg4 {[%clk 0:00:32]} 26. Bg3 {[%clk 0:01:07]}  Bxe2 {[%clk 0:00:30]} 27. Bxh4 {[%clk 0:01:06]}  Bxf1 {[%clk 0:00:27]} 28. Bxd8 {[%clk 0:01:04]}  Bxb5 {[%clk 0:00:24]} 29. Nxb5 {[%clk 0:01:05]}  Bf6 {[%clk 0:00:13]} 30. Rxd5 {[%clk 0:00:58]}  Bxd8 {[%clk 0:00:12]} 31. Nd4 {[%clk 0:00:59]} 1-0


[Site "https://www.chess.com"]

[Event "Titled Tuesday Blitz March 28 Late 2023"]
[White "Popov, Mikhail"]
[Black "Vivas Zamora, Fabian Ernesto"]
[WhiteFideId "4146182"]
[BlackFideId "3902480"]
[WhiteElo "2270"]
[BlackElo "2262"]
[Result "1-0"]
[Round "11"]
[TimeControl "180+2"]
[Date "2023.03.28"]
[WhiteClock "0:00:36"]
[BlackClock "0:00:01"]

1. d4 {[%clk 0:02:59]}  Nf6 {[%clk 0:02:59]} 2. Nf3 {[%clk 0:02:56]}  g6 {[%clk 0:02:59]} 3. Bg5 {[%clk 0:02:56]}  Bg7 {[%clk 0:02:58]} 4. Nbd2 {[%clk 0:02:49]}  c5 {[%clk 0:02:57]} 5. c3 {[%clk 0:02:45]}  cxd4 {[%clk 0:02:48]} 6. cxd4 {[%clk 0:02:46]}  d5 {[%clk 0:02:36]} 7. e3 {[%clk 0:02:40]}  O-O {[%clk 0:02:24]} 8. Bd3 {[%clk 0:02:38]}  Nc6 {[%clk 0:02:23]} 9. a3 {[%clk 0:02:37]}  Qb6 {[%clk 0:02:17]} 10. Qb3 {[%clk 0:02:33]}  Qxb3 {[%clk 0:02:06]} 11. Nxb3 {[%clk 0:02:34]}  Bf5 {[%clk 0:01:53]} 12. Bxf5 {[%clk 0:02:32]}  gxf5 {[%clk 0:01:54]} 13. Bxf6 {[%clk 0:02:29]}  Bxf6 {[%clk 0:01:53]} 14. Nc5 {[%clk 0:02:27]}  Rfc8 {[%clk 0:01:37]} 15. Ke2 {[%clk 0:02:22]}  b6 {[%clk 0:01:33]} 16. Nd3 {[%clk 0:02:17]}  Na5 {[%clk 0:01:29]} 17. Rac1 {[%clk 0:02:13]}  Nb3 {[%clk 0:01:28]} 18. Rxc8+ {[%clk 0:01:54]}  Rxc8 {[%clk 0:01:29]} 19. Kd1 {[%clk 0:01:55]}  a5 {[%clk 0:01:20]} 20. Nd2 {[%clk 0:01:54]}  a4 {[%clk 0:01:02]} 21. Nxb3 {[%clk 0:01:40]}  axb3 {[%clk 0:01:03]} 22. Nb4 {[%clk 0:01:39]}  e6 {[%clk 0:01:00]} 23. Kd2 {[%clk 0:01:38]}  Be7 {[%clk 0:00:33]} 24. Rc1 {[%clk 0:01:37]}  Bxb4+ {[%clk 0:00:32]} 25. axb4 {[%clk 0:01:37]}  Rxc1 {[%clk 0:00:19]} 26. Kxc1 {[%clk 0:01:36]}  b5 {[%clk 0:00:11]} 27. Kd2 {[%clk 0:01:35]}  Kg7 {[%clk 0:00:11]} 28. Kc3 {[%clk 0:01:27]}  Kg6 {[%clk 0:00:12]} 29. Kxb3 {[%clk 0:01:24]}  Kg5 {[%clk 0:00:05]} 30. Kc3 {[%clk 0:01:17]}  f4 {[%clk 0:00:01]} 31. Kd3 {[%clk 0:01:15]}  Kf5 {[%clk 0:00:02]} 32. f3 {[%clk 0:01:08]}  fxe3 {[%clk 0:00:02]} 33. Kxe3 {[%clk 0:01:09]}  h5 {[%clk 0:00:02]} 34. g3 {[%clk 0:01:09]}  Kg5 {[%clk 0:00:02]} 35. h3 {[%clk 0:01:01]}  f6 {[%clk 0:00:02]} 36. f4+ {[%clk 0:01:00]}  Kf5 {[%clk 0:00:02]} 37. Kf3 {[%clk 0:01:00]}  Kg6 {[%clk 0:00:02]} 38. g4 {[%clk 0:00:59]}  h4 {[%clk 0:00:03]} 39. f5+ {[%clk 0:00:40]}  exf5 {[%clk 0:00:03]} 40. Kf4 {[%clk 0:00:40]}  fxg4 {[%clk 0:00:03]} 41. Kxg4 {[%clk 0:00:40]}  f5+ {[%clk 0:00:03]} 42. Kxh4 {[%clk 0:00:40]}  Kh6 {[%clk 0:00:03]} 43. Kg3 {[%clk 0:00:40]}  Kg5 {[%clk 0:00:03]} 44. Kf3 {[%clk 0:00:39]}  f4 {[%clk 0:00:02]} 45. b3 {[%clk 0:00:36]}  Kf5 {[%clk 0:00:01]} 46. h4 {[%clk 0:00:36]} 1-0


[Site "https://www.chess.com"]

[Event "Titled Tuesday Blitz March 28 Late 2023"]
[White "Mazurkiewicz, Michal"]
[Black "Goroshkov, Maksym"]
[WhiteFideId "1124943"]
[BlackFideId "14142716"]
[WhiteElo "2054"]
[BlackElo "2322"]
[Result "1-0"]
[Round "11"]
[TimeControl "180+2"]
[Date "2023.03.28"]
[WhiteClock "0:00:13"]
[BlackClock "0:01:27"]

1. e4 {[%clk 0:03:00]}  e5 {[%clk 0:03:00]} 2. Nf3 {[%clk 0:03:00]}  d6 {[%clk 0:03:01]} 3. d4 {[%clk 0:03:00]}  Bg4 {[%clk 0:03:01]} 4. dxe5 {[%clk 0:02:58]}  Nd7 {[%clk 0:03:01]} 5. exd6 {[%clk 0:02:56]}  Bxd6 {[%clk 0:03:01]} 6. Be2 {[%clk 0:02:56]}  Ngf6 {[%clk 0:03:01]} 7. Nc3 {[%clk 0:02:54]}  Qe7 {[%clk 0:03:01]} 8. h3 {[%clk 0:02:50]}  Bh5 {[%clk 0:03:01]} 9. O-O {[%clk 0:02:48]}  O-O-O {[%clk 0:03:01]} 10. Be3 {[%clk 0:02:20]}  a6 {[%clk 0:02:56]} 11. Nd4 {[%clk 0:01:52]}  Bxe2 {[%clk 0:02:53]} 12. Qxe2 {[%clk 0:01:52]}  Nxe4 {[%clk 0:02:42]} 13. Nc6 {[%clk 0:01:44]}  Qh4 {[%clk 0:02:33]} 14. Nxe4 {[%clk 0:01:38]}  Qxe4 {[%clk 0:02:32]} 15. Nxd8 {[%clk 0:01:28]}  Rxd8 {[%clk 0:02:33]} 16. Qg4 {[%clk 0:01:12]}  Qe5 {[%clk 0:02:30]} 17. g3 {[%clk 0:01:12]}  f5 {[%clk 0:02:29]} 18. Qd4 {[%clk 0:01:11]}  Qe7 {[%clk 0:02:21]} 19. Rfe1 {[%clk 0:00:48]}  Qf7 {[%clk 0:02:10]} 20. Rad1 {[%clk 0:00:36]}  Ne5 {[%clk 0:02:05]} 21. Kg2 {[%clk 0:00:26]}  Nc6 {[%clk 0:02:05]} 22. Qd5 {[%clk 0:00:20]}  Qf6 {[%clk 0:02:04]} 23. Bd4 {[%clk 0:00:16]}  Nxd4 {[%clk 0:01:56]} 24. Qxd4 {[%clk 0:00:17]}  Qg6 {[%clk 0:01:55]} 25. Qa7 {[%clk 0:00:17]}  f4 {[%clk 0:01:52]} 26. Re7 {[%clk 0:00:17]}  f3+ {[%clk 0:01:34]} 27. Kh1 {[%clk 0:00:14]}  c5 {[%clk 0:01:27]} 28. Qxb7# {[%clk 0:00:13]} 1-0


[Site "https://www.chess.com"]

[Event "Titled Tuesday Blitz March 28 Late 2023"]
[White "Przybylski, Wojciech"]
[Black "Belov, Alexei"]
[WhiteFideId "1117599"]
[BlackFideId "4128206"]
[WhiteElo "2222"]
[BlackElo "2535"]
[Result "0-1"]
[Round "11"]
[TimeControl "180+2"]
[Date "2023.03.28"]
[WhiteClock "0:00:02"]
[BlackClock "0:01:17"]

1. d4 {[%clk 0:03:00]}  e6 {[%clk 0:02:59]} 2. e4 {[%clk 0:02:59]}  d5 {[%clk 0:02:57]} 3. Nc3 {[%clk 0:02:59]}  Nf6 {[%clk 0:02:56]} 4. Bg5 {[%clk 0:02:53]}  dxe4 {[%clk 0:02:56]} 5. Nxe4 {[%clk 0:02:52]}  Be7 {[%clk 0:02:56]} 6. Bxf6 {[%clk 0:02:52]}  Bxf6 {[%clk 0:02:57]} 7. Nf3 {[%clk 0:02:49]}  O-O {[%clk 0:02:58]} 8. c3 {[%clk 0:02:46]}  Nd7 {[%clk 0:02:57]} 9. Bd3 {[%clk 0:02:46]}  e5 {[%clk 0:02:57]} 10. d5 {[%clk 0:02:44]}  Be7 {[%clk 0:02:56]} 11. Bc4 {[%clk 0:02:41]}  Nb6 {[%clk 0:02:48]} 12. Bb3 {[%clk 0:02:40]}  Bd6 {[%clk 0:02:42]} 13. O-O {[%clk 0:02:37]}  f5 {[%clk 0:02:42]} 14. Nxd6 {[%clk 0:02:34]}  cxd6 {[%clk 0:02:42]} 15. Nd2 {[%clk 0:02:29]}  Nd7 {[%clk 0:02:41]} 16. f4 {[%clk 0:02:25]}  e4 {[%clk 0:02:38]} 17. Nc4 {[%clk 0:02:24]}  Nc5 {[%clk 0:02:37]} 18. Qd4 {[%clk 0:02:20]}  b6 {[%clk 0:02:32]} 19. Rae1 {[%clk 0:02:19]}  Ba6 {[%clk 0:02:31]} 20. Re3 {[%clk 0:02:14]}  Rc8 {[%clk 0:02:29]} 21. Rg3 {[%clk 0:02:12]}  g6 {[%clk 0:02:24]} 22. Rd1 {[%clk 0:02:08]}  Qc7 {[%clk 0:02:15]} 23. Ne3 {[%clk 0:02:01]}  Nd3 {[%clk 0:02:04]} 24. Rb1 {[%clk 0:01:59]}  Nxf4 {[%clk 0:02:02]} 25. Bd1 {[%clk 0:01:47]}  Qc5 {[%clk 0:01:51]} 26. Qa4 {[%clk 0:01:36]}  Be2 {[%clk 0:01:47]} 27. Kh1 {[%clk 0:01:26]}  Bd3 {[%clk 0:01:26]} 28. Rc1 {[%clk 0:01:23]}  Nxd5 {[%clk 0:01:25]} 29. Bb3 {[%clk 0:00:59]}  b5 {[%clk 0:01:25]} 30. Bxd5+ {[%clk 0:00:05]}  Kh8 {[%clk 0:01:24]} 31. Qb3 {[%clk 0:00:03]}  f4 {[%clk 0:01:22]} 32. Rh3 {[%clk 0:00:03]}  fxe3 {[%clk 0:01:20]} 33. Be6 {[%clk 0:00:04]}  Bc4 {[%clk 0:01:18]} 34. Bxc4 {[%clk 0:00:03]}  Qxc4 {[%clk 0:01:18]} 35. Qc2 {[%clk 0:00:03]}  Rf1+ {[%clk 0:01:17]} 36. Rxf1 {[%clk 0:00:02]}  Qxf1# {[%clk 0:01:17]} 0-1


[Site "https://www.chess.com"]

[Event "Titled Tuesday Blitz March 28 Late 2023"]
[White "Castella Garcia, Fausto"]
[Black "Hirneise, Jens"]
[WhiteFideId "3501922"]
[BlackFideId "24614734"]
[WhiteElo "2245"]
[BlackElo "2345"]
[Result "1/2-1/2"]
[Round "11"]
[TimeControl "180+2"]
[Date "2023.03.28"]
[WhiteClock "0:00:05"]
[BlackClock "0:00:06"]

1. e4 {[%clk 0:03:00]}  e5 {[%clk 0:02:38]} 2. Nf3 {[%clk 0:02:58]}  Nc6 {[%clk 0:02:25]} 3. Bb5 {[%clk 0:02:57]}  Nd4 {[%clk 0:02:24]} 4. Nxd4 {[%clk 0:02:56]}  exd4 {[%clk 0:02:25]} 5. O-O {[%clk 0:02:56]}  c6 {[%clk 0:02:24]} 6. Ba4 {[%clk 0:02:54]}  Qh4 {[%clk 0:02:09]} 7. d3 {[%clk 0:02:49]}  Nf6 {[%clk 0:02:07]} 8. g3 {[%clk 0:02:41]}  Qh3 {[%clk 0:02:06]} 9. f3 {[%clk 0:02:29]}  h5 {[%clk 0:01:56]} 10. Qe2 {[%clk 0:02:24]}  Bc5 {[%clk 0:01:49]} 11. Bb3 {[%clk 0:02:17]}  a5 {[%clk 0:01:47]} 12. a4 {[%clk 0:02:16]}  O-O {[%clk 0:01:45]} 13. e5 {[%clk 0:02:06]}  Nd5 {[%clk 0:01:43]} 14. Bxd5 {[%clk 0:02:05]}  cxd5 {[%clk 0:01:44]} 15. Qg2 {[%clk 0:01:55]}  Qe6 {[%clk 0:01:39]} 16. f4 {[%clk 0:01:53]}  d6 {[%clk 0:01:39]} 17. Re1 {[%clk 0:01:45]}  f6 {[%clk 0:01:32]} 18. f5 {[%clk 0:01:34]}  Qxf5 {[%clk 0:01:32]} 19. exd6 {[%clk 0:01:25]}  Bxd6 {[%clk 0:01:28]} 20. Na3 {[%clk 0:01:23]}  Bd7 {[%clk 0:01:23]} 21. Nb5 {[%clk 0:01:12]}  Rae8 {[%clk 0:01:13]} 22. Bd2 {[%clk 0:01:03]}  Bxb5 {[%clk 0:01:12]} 23. axb5 {[%clk 0:01:04]}  b6 {[%clk 0:01:09]} 24. Rf1 {[%clk 0:01:03]}  Qe6 {[%clk 0:01:07]} 25. Rae1 {[%clk 0:00:58]}  Qf7 {[%clk 0:01:08]} 26. c3 {[%clk 0:00:39]}  Be5 {[%clk 0:01:03]} 27. Kh1 {[%clk 0:00:31]}  dxc3 {[%clk 0:01:01]} 28. bxc3 {[%clk 0:00:30]}  d4 {[%clk 0:00:57]} 29. c4 {[%clk 0:00:28]}  Qg6 {[%clk 0:00:52]} 30. Re4 {[%clk 0:00:27]}  a4 {[%clk 0:00:45]} 31. Ra1 {[%clk 0:00:25]}  Ra8 {[%clk 0:00:42]} 32. Qf3 {[%clk 0:00:17]}  Rfc8 {[%clk 0:00:39]} 33. Re2 {[%clk 0:00:16]}  a3 {[%clk 0:00:39]} 34. Ra2 {[%clk 0:00:15]}  Re8 {[%clk 0:00:34]} 35. Bb4 {[%clk 0:00:14]}  Bc7 {[%clk 0:00:24]} 36. Rxa3 {[%clk 0:00:14]}  Rxa3 {[%clk 0:00:18]} 37. Bxa3 {[%clk 0:00:14]}  h4 {[%clk 0:00:14]} 38. gxh4 {[%clk 0:00:11]}  Rxe2 {[%clk 0:00:10]} 39. Qxe2 {[%clk 0:00:10]}  Kf7 {[%clk 0:00:09]} 40. h5 {[%clk 0:00:09]}  Qg5 {[%clk 0:00:09]} 41. c5 {[%clk 0:00:07]}  Qf4 {[%clk 0:00:06]} 42. cxb6 {[%clk 0:00:05]}  Be5 {[%clk 0:00:07]} 43. b7 {[%clk 0:00:05]}  Kg8 {[%clk 0:00:04]} 44. b8=Q+ {[%clk 0:00:05]}  Bxb8 {[%clk 0:00:04]} 45. Qe8+ {[%clk 0:00:05]}  Kh7 {[%clk 0:00:04]} 46. Qg6+ {[%clk 0:00:05]}  Kh8 {[%clk 0:00:04]} 47. Qe8+ {[%clk 0:00:05]}  Kh7 {[%clk 0:00:05]} 48. Qg6+ {[%clk 0:00:05]}  Kh8 {[%clk 0:00:05]} 49. Qe8+ {[%clk 0:00:05]}  Kh7 {[%clk 0:00:06]} 1/2-1/2


[Site "https://www.chess.com"]